lending/lending_fUSD_20260306
["ID","MTS","AMOUNT","RATE_DAILY","PERIOD"]
[407765347,1772778396092,-300.0,0.00015735,2]
[407765348,1772778396114,-957.92081058,0.00015735,2]
[407765349,1772778413254,2679.16,0.00015184,2]
[407765350,1772778423910,420.75484906,0.00015184,2]
[407765351,1772778423935,79.24515094,0.00015184,2]
[407765352,1772778425130,-166.4521349,0.00015735,2]
[407765353,1772778449002,150.0,0.00015153,2]
[407765354,1772778560085,-133.5478651,0.00015735,2]
[407765355,1772778560106,-300.0,0.00015735,2]
[407765356,1772778560126,-1069.6934,0.00015735,2]
[407765357,1772778560147,-250.0,0.00015735,2]
[407765358,1772778560169,-1639.26012,0.00015735,2]
[407765359,1772778564108,-1543.88770135,0.00015735,2]
[407765360,1772778564129,-1409.75324381,0.00015736,2]
[407765361,1772778628427,10000.01,0.00015636,2]
[407765362,1772778628455,10000.01,0.00015636,2]
[407765363,1772778628482,10000.01,0.00015636,2]
[407765364,1772778628509,4770.76484906,0.00015636,2]
[407765365,1772778628535,5000.01,0.00015636,2]
[407765366,1772778628560,5000.01,0.00015636,2]
[407765367,1772778628586,5000.01,0.00015636,2]
[407765368,1772778632076,-15146.33778609,0.00015636,2]
[407765369,1772778632088,-195764.94150136,0.00015636,2]
[407765370,1772778632240,-905.49547409,0.00015636,2]
[407765371,1772778632252,-2238412.4003894,0.00015636,2]
[407765372,1772778632261,-191.22738379,0.00015724,2]
[407765373,1772778632270,-300.0,0.00015735,2]
[407765374,1772778632280,-1200.0,0.00015735,2]
[407765375,1772778632289,-300.0,0.00015735,2]
[407765376,1772778632299,-300.0,0.00015735,2]
[407765378,1772778632308,-300.0,0.00015735,2]
[407765380,1772778632317,-300.0,0.00015735,30]
[407765382,1772778632327,-20119.92683272,0.00015736,2]
[407765384,1772778632336,-1017.26167394,0.00015736,2]
[407765386,1772778632345,-6713.2126,0.00015736,2]
[407765388,1772778632355,-1800.691,0.00015736,2]
[407765390,1772778632364,-205.985,0.00015736,2]
[407765392,1772778632373,-175.77535363,0.00015736,2]
[407765394,1772778632383,-205.90013598,0.00015736,2]
[407765396,1772778632392,-288.26019037,0.00015736,2]
[407765398,1772778632401,-5663.95215273,0.00015736,2]
[407765400,1772778632410,-4317.11681786,0.00015736,2]
[407765402,1772778632420,-174.0,0.00015736,3]
[407765404,1772778632429,-200.0,0.00015736,2]
[407765406,1772778632438,-23104.89,0.00015808,2]
[407765408,1772778632447,-183.17168584,0.00015826,2]
[407765410,1772778632456,-194.06,0.00015826,2]
[407765412,1772778632465,-500.0,0.00015826,2]
[407765414,1772778632474,-151.0,0.00015826,2]
[407765416,1772778632483,-500.0,0.00015826,2]
[407765418,1772778632493,-151.0,0.00015826,2]
[407765420,1772778632502,-500.0,0.00015826,2]
[407765422,1772778632511,-151.0,0.00015826,2]
[407765424,1772778632520,-500.0,0.00015826,2]
[407765426,1772778632530,-151.0,0.00015826,2]
[407765427,1772778632539,-500.0,0.00015826,2]
[407765428,1772778632549,-151.0,0.00015826,2]
[407765429,1772778632558,-500.0,0.00015826,2]
[407765430,1772778632567,-151.0,0.00015826,2]
[407765431,1772778632577,-500.0,0.00015826,2]
[407765432,1772778632592,-151.0,0.00015826,2]
[407765433,1772778632607,-500.0,0.00015826,2]
[407765434,1772778632624,-151.0,0.00015826,2]
[407765435,1772778632633,-500.0,0.00015826,2]
[407765436,1772778632643,-151.0,0.00015826,2]
[407765437,1772778632652,-500.0,0.00015826,2]
[407765438,1772778632661,-500.0,0.00015826,2]
[407765439,1772778632671,-151.0,0.00015826,2]
[407765440,1772778632680,-151.0,0.00015826,2]
[407765441,1772778632689,-500.0,0.00015826,2]
[407765442,1772778632698,-500.0,0.00015826,2]
[407765443,1772778632708,-500.0,0.00015826,2]
[407765444,1772778632717,-500.0,0.00015826,2]
[407765445,1772778632726,-500.0,0.00015826,2]
[407765446,1772778632736,-500.0,0.00015826,2]
[407765447,1772778632745,-500.0,0.00015826,2]
[407765448,1772778632754,-200.0,0.00015826,2]
[407765449,1772778632763,-500.0,0.00015826,2]
[407765450,1772778632772,-500.0,0.00015826,2]
[407765451,1772778632781,-500.0,0.00015826,2]
[407765452,1772778632791,-500.0,0.00015826,2]
[407765453,1772778632800,-500.0,0.00015826,2]
[407765454,1772778632810,-151.0,0.00015826,2]
[407765455,1772778632821,-151.0,0.00015826,2]
[407765456,1772778632831,-151.0,0.00015826,2]
[407765457,1772778632841,-151.0,0.00015826,2]
[407765458,1772778632850,-151.0,0.00015826,2]
[407765459,1772778632861,-151.0,0.00015826,2]
[407765460,1772778632870,-151.0,0.00015826,2]
[407765461,1772778632880,-151.0,0.00015826,2]
[407765462,1772778632889,-151.0,0.00015826,2]
[407765463,1772778632899,-151.0,0.00015826,2]
[407765464,1772778632909,-151.0,0.00015826,2]
[407765465,1772778632919,-151.0,0.00015826,2]
[407765466,1772778632928,-151.0,0.00015826,2]
[407765467,1772778632937,-151.0,0.00015826,2]
[407765468,1772778632946,-151.0,0.00015826,2]
[407765469,1772778632955,-151.0,0.00015826,2]
[407765470,1772778632965,-151.0,0.00015826,2]
[407765471,1772778632974,-151.0,0.00015826,2]
[407765472,1772778632987,-151.0,0.00015826,2]
[407765473,1772778632997,-151.0,0.00015833,2]
[407765474,1772778633006,-195.9859342,0.00015835,2]
[407765475,1772778633016,-614.02182999,0.00015835,2]
[407765476,1772778633025,-195.38196174,0.00015835,2]
[407765477,1772778633034,-9999.99,0.00015835,2]
[407765478,1772778633043,-4262.62,0.00015835,2]
[407765479,1772778633052,-150.99,0.00015835,2]
[407765480,1772778633062,-3709.45,0.00015835,2]
[407765481,1772778633071,-299.99,0.00015835,2]
[407765482,1772778633080,-2848.16,0.00015835,2]
[407765483,1772778633090,-500.0,0.00015835,2]
[407765484,1772778633099,-500.0,0.00015835,2]
[407765485,1772778633108,-500.0,0.00015835,2]
[407765486,1772778633118,-500.0,0.00015835,2]
[407765487,1772778633127,-500.0,0.00015835,2]
[407765488,1772778633136,-500.0,0.00015835,2]
[407765489,1772778633146,-500.0,0.00015835,2]
[407765490,1772778633155,-500.0,0.00015835,2]
[407765491,1772778633165,-500.0,0.00015835,2]
[407765492,1772778633174,-485.94909968,0.00015835,2]
[407765493,1772778633183,-500.0,0.00015835,2]
[407765494,1772778633192,-500.0,0.00015835,2]
[407765495,1772778633202,-500.0,0.00015835,2]
[407765496,1772778633211,-500.0,0.00015835,2]
[407765497,1772778633220,-500.0,0.00015835,2]
[407765498,1772778633230,-500.0,0.00015835,2]
[407765499,1772778633238,-500.0,0.00015835,2]
[407765500,1772778633248,-500.0,0.00015835,2]
[407765501,1772778633258,-377.47610794,0.00015835,2]
[407765502,1772778633267,-500.0,0.00015835,2]
[407765503,1772778633276,-585.77667999,0.00015835,2]
[407765504,1772778633286,-500.0,0.00015835,2]
[407765505,1772778633295,-536.50967307,0.00015835,2]
[407765506,1772778633304,-500.0,0.00015835,2]
[407765507,1772778633314,-500.0,0.00015835,2]
[407765508,1772778633324,-500.0,0.00015835,2]
[407765509,1772778633333,-500.0,0.00015835,2]
[407765510,1772778633347,-500.0,0.00015835,2]
[407765511,1772778633357,-500.0,0.00015835,2]
[407765512,1772778633366,-648.77307652,0.00015835,2]
[407765513,1772778633375,-500.0,0.00015835,2]
[407765514,1772778633385,-500.0,0.00015835,2]
[407765515,1772778633394,-500.0,0.00015835,2]
[407765516,1772778633404,-500.0,0.00015835,2]
[407765517,1772778633414,-500.0,0.00015835,2]
[407765518,1772778633424,-353.53947128,0.00015835,2]
[407765519,1772778633433,-165.63365939,0.00015835,2]
[407765520,1772778633442,-500.0,0.00015835,2]
[407765521,1772778633453,-515.34564345,0.00015835,2]
[407765522,1772778633462,-500.0,0.00015835,2]
[407765523,1772778633472,-1000.0,0.00015836,2]
[407765524,1772778633482,-1983.76238319,0.00015836,2]
[407765525,1772778633491,-500.0,0.00015873,2]
[407765526,1772778633501,-500.0,0.00015873,2]
[407765527,1772778633510,-623.52915475,0.00015873,2]
[407765528,1772778633520,-500.0,0.00015873,2]
[407765529,1772778633529,-500.0,0.00015873,2]
[407765530,1772778633539,-500.0,0.00015873,2]
[407765531,1772778633552,-500.0,0.00015873,2]
[407765532,1772778633562,-500.0,0.00015873,2]
[407765533,1772778633572,-500.0,0.00015873,2]
[407765534,1772778633582,-500.0,0.00015873,2]
[407765535,1772778633592,-500.0,0.00015873,2]
[407765536,1772778633602,-500.0,0.00015873,2]
[407765537,1772778633612,-500.0,0.00015873,2]
[407765538,1772778633622,-500.0,0.00015873,2]
[407765539,1772778633632,-500.0,0.00015873,2]
[407765540,1772778633642,-500.0,0.00015873,2]
[407765541,1772778633652,-500.0,0.00015873,2]
[407765542,1772778633662,-456.67098084,0.00015873,2]
[407765543,1772778633671,-500.0,0.00015873,2]
[407765544,1772778633681,-501.84880506,0.00015873,2]
[407765545,1772778633690,-500.0,0.00015873,2]
[407765546,1772778633700,-500.0,0.00015873,2]
[407765547,1772778633709,-500.0,0.00015873,2]
[407765548,1772778633719,-500.0,0.00015873,2]
[407765549,1772778633728,-500.0,0.00015935,2]
[407765550,1772778633738,-500.0,0.00015935,2]
[407765551,1772778633752,-500.0,0.00015935,2]
[407765552,1772778633762,-500.0,0.00015935,2]
[407765553,1772778633771,-507.48882824,0.00015935,2]
[407765554,1772778633781,-500.0,0.00015935,2]
[407765555,1772778633791,-305.68585935,0.00015935,2]
[407765556,1772778633800,-500.0,0.00015935,2]
[407765557,1772778633811,-500.0,0.00015935,2]
[407765558,1772778633824,-500.0,0.00015935,2]
[407765559,1772778633834,-500.0,0.00015935,2]
[407765560,1772778633843,-500.0,0.00015935,2]
[407765561,1772778633855,-500.0,0.00015935,2]
[407765562,1772778633864,-500.0,0.00015935,2]
[407765563,1772778633873,-500.0,0.00015935,2]
[407765564,1772778633883,-500.0,0.00015935,2]
[407765565,1772778633901,-308.08,0.00015935,2]
[407765566,1772778633914,-500.0,0.00015935,2]
[407765567,1772778633928,-500.0,0.00015935,2]
[407765568,1772778633943,-500.0,0.00015935,2]
[407765569,1772778633953,-500.0,0.00015935,2]
[407765570,1772778633963,-500.0,0.00015935,2]
[407765571,1772778633978,-500.0,0.00015935,2]
[407765572,1772778633988,-500.0,0.00015935,2]
[407765573,1772778633997,-500.0,0.00015935,2]
[407765574,1772778634007,-500.0,0.00015935,2]
[407765575,1772778634016,-500.0,0.00015935,2]
[407765576,1772778634026,-500.0,0.00015935,2]
[407765577,1772778634037,-166.66,0.00015937,2]
[407765578,1772778634046,-4000.0,0.00015986,2]
[407765579,1772778634056,-194.07,0.000161,2]
[407765580,1772778634066,-295.0,0.00016108,2]
[407765581,1772778634075,-500.0,0.00016109,2]
[407765582,1772778634084,-9999.99,0.00016116,2]
[407765583,1772778634094,-462.0,0.00016118,2]
[407765584,1772778634103,-406.84758044,0.0001614,2]
[407765585,1772778634113,-414.0,0.0001615,2]
[407765586,1772778634122,-156.68739691,0.00016186,2]
[407765587,1772778634132,-170.0146578,0.00016186,2]
[407765588,1772778634141,-167.64435531,0.00016186,2]
[407765589,1772778634152,-171.42307521,0.00016186,2]
[407765590,1772778634162,-5663.95215273,0.00016199,2]
[407765591,1772778634172,-4317.1168178,0.00016199,2]
[407765592,1772778634182,-304.0,0.0001621,2]
[407765593,1772778634191,-18343.1618469,0.0001622,2]
[407765594,1772778634201,-677.0,0.00016227,2]
[407765595,1772778634211,-439.0,0.00016246,2]
[407765596,1772778634220,-156.0,0.00016279,2]
[407765597,1772778634230,-626.0,0.00016298,2]
[407765598,1772778634239,-996.0,0.0001633,2]
[407765599,1772778634249,-152.0,0.00016345,3]
[407765600,1772778634259,-12431.12,0.00016358,2]
[407765601,1772778634269,-1786.0,0.00016363,2]
[407765602,1772778634278,-200.0,0.00016374,2]
[407765603,1772778634290,-4000.0,0.00016376,2]
[407765604,1772778634300,-466.60605261,0.00016383,2]
[407765605,1772778634309,-1000.0,0.00016421,2]
[407765606,1772778634319,-1000.0,0.00016421,2]
[407765607,1772778634329,-1000.0,0.00016421,2]
[407765608,1772778634339,-1080.35264199,0.00016421,2]
[407765609,1772778634348,-1000.0,0.00016421,2]
[407765610,1772778634358,-1000.0,0.00016421,2]
[407765611,1772778634367,-1000.0,0.00016421,2]
[407765612,1772778634377,-1000.0,0.00016421,2]
[407765613,1772778634386,-865.59582482,0.00016421,2]
[407765614,1772778634396,-387.85102823,0.00016421,2]
[407765615,1772778634406,-1000.0,0.00016421,2]
[407765616,1772778634415,-1000.0,0.00016421,2]
[407765617,1772778634425,-1000.0,0.00016421,2]
[407765618,1772778634435,-1000.0,0.00016421,2]
[407765619,1772778634445,-1000.0,0.00016421,2]
[407765620,1772778634455,-1000.0,0.00016421,2]
[407765621,1772778634465,-1000.0,0.00016421,2]
[407765622,1772778634474,-1000.0,0.00016421,2]
[407765623,1772778634484,-1000.0,0.00016421,2]
[407765624,1772778634494,-1000.0,0.00016421,2]
[407765625,1772778634504,-1000.0,0.00016421,2]
[407765626,1772778634514,-175.77535362,0.0001643,2]
[407765627,1772778634524,-152.0,0.00016515,4]
[407765628,1772778634533,-864.0,0.00016612,2]
[407765629,1772778634543,-864.0,0.00016612,2]
[407765630,1772778634553,-864.0,0.00016612,2]
[407765631,1772778634562,-864.0,0.00016612,2]
[407765632,1772778634572,-864.0,0.00016612,2]
[407765633,1772778634581,-864.0,0.00016612,2]
[407765634,1772778634590,-864.0,0.00016612,2]
[407765635,1772778634600,-864.0,0.00016612,2]
[407765636,1772778634610,-864.0,0.00016612,2]
[407765637,1772778634619,-864.0,0.00016612,2]
[407765638,1772778634628,-864.0,0.00016612,2]
[407765639,1772778634638,-864.0,0.00016612,2]
[407765640,1772778634648,-509.91771372,0.00016616,2]
[407765641,1772778634657,-249.60920106,0.00016659,2]
[407765642,1772778634666,-5663.95215273,0.00016661,2]
[407765643,1772778634676,-4317.1168178,0.00016661,2]
[407765644,1772778634685,-152.0,0.00016685,5]
[407765645,1772778635039,-166.34,0.00016712,2]
[407765646,1772778635049,-500.0,0.00016745,2]
[407765647,1772778635060,-4000.0,0.00016766,2]
[407765648,1772778635069,-237.39,0.0001679,2]
[407765649,1772778635087,-500.0,0.00016822,2]
[407765650,1772778635098,-200.0,0.00016833,2]
[407765651,1772778635107,-510.0,0.00016852,2]
[407765652,1772778635117,-152.0,0.00016855,6]
[407765653,1772778635127,-232.44,0.00016866,2]
[407765654,1772778635136,-202.8847235,0.00016922,2]
[407765655,1772778635146,-1500.0,0.00016968,2]
[407765656,1772778635156,-194.14820005,0.00016968,2]
[407765657,1772778635166,-1500.0,0.00016968,2]
[407765658,1772778635176,-1500.0,0.00016968,2]
[407765659,1772778635185,-1501.29144618,0.00016968,2]
[407765660,1772778635195,-1500.0,0.00016968,2]
[407765661,1772778635204,-1500.0,0.00016968,2]
[407765662,1772778635214,-1500.0,0.00016968,2]
[407765663,1772778635224,-1500.0,0.00016968,2]
[407765664,1772778635234,-1500.0,0.00016968,2]
[407765665,1772778635243,-1500.0,0.00016968,2]
[407765666,1772778635253,-1500.0,0.00016968,2]
[407765667,1772778635263,-1500.0,0.00016968,2]
[407765668,1772778635272,-1500.0,0.00016968,2]
[407765669,1772778635282,-1500.0,0.00016968,2]
[407765670,1772778635292,-1636.37506485,0.00016968,2]
[407765671,1772778635302,-445.00455229,0.00016968,2]
[407765672,1772778635311,-1500.0,0.00016968,2]
[407765673,1772778635321,-1504.20168,0.00017,2]
[407765674,1772778635333,-152.0,0.00017026,7]
[407765675,1772778635342,-450.0,0.00017038,2]
[407765676,1772778635352,-237.39,0.0001706,2]
[407765677,1772778635362,-2055.73,0.000171,2]
[407765678,1772778635371,-175.77535362,0.00017124,2]
[407765679,1772778635381,-5663.95215273,0.00017124,2]
[407765680,1772778635391,-4317.1168178,0.00017124,2]
[407765681,1772778635401,-4000.0,0.00017156,2]
[407765682,1772778635411,-152.0,0.00017196,8]
[407765683,1772778635421,-273.0,0.00017208,2]
[407765684,1772778635430,-181.0,0.00017208,2]
[407765685,1772778635440,-200.0,0.0001726,2]
[407765686,1772778635450,-1680.0,0.00017295,2]
[407765687,1772778635460,-2500.0,0.00017297,2]
[407765688,1772778635470,-2500.0,0.00017297,2]
[407765689,1772778635479,-767.71719846,0.00017297,2]
[407765690,1772778635489,-338.8535188,0.00017297,2]
[407765691,1772778635499,-194.0139528,0.00017307,2]
[407765692,1772778635509,-2500.0,0.00017309,2]
[407765693,1772778635519,-5000.0,0.00017309,2]
[407765694,1772778635528,-250.0,0.00017309,2]
[407765695,1772778635538,-2500.0,0.00017309,2]
[407765696,1772778635548,-678.52346066,0.00017309,2]
[407765697,1772778635558,-250.0,0.00017309,2]
[407765698,1772778635568,-300.0,0.00017309,2]
[407765699,1772778635577,-500.0,0.00017309,2]
[407765700,1772778635587,-5000.0,0.00017309,2]
[407765701,1772778635597,-192.17346024,0.0001731,2]
[407765702,1772778635606,-237.39,0.0001733,2]
[407765703,1772778635617,-152.0,0.00017366,9]
[407765704,1772778635628,-500.0,0.000174,2]
[407765705,1772778635638,-500.0,0.000174,2]
[407765706,1772778635647,-500.0,0.000174,2]
[407765707,1772778635658,-161.80584655,0.000174,2]
[407765708,1772778635668,-160.26681747,0.000174,2]
[407765709,1772778635677,-500.0,0.00017452,2]
[407765710,1772778635686,-1037.25309983,0.00017516,2]
[407765711,1772778635696,-2000.0,0.00017516,2]
[407765712,1772778635705,-1617.15407622,0.00017516,2]
[407765713,1772778635715,-2000.0,0.00017516,2]
[407765714,1772778635724,-468.59830435,0.00017516,2]
[407765715,1772778635734,-2000.0,0.00017516,2]
[407765716,1772778635744,-2000.0,0.00017516,2]
[407765717,1772778635753,-2000.0,0.00017516,2]
[407765718,1772778635763,-2000.0,0.00017516,2]
[407765719,1772778635772,-1189.83567648,0.00017516,2]
[407765720,1772778635782,-2000.0,0.00017516,2]
[407765721,1772778635792,-2000.0,0.00017516,2]
[407765722,1772778635801,-2000.0,0.00017516,2]
[407765723,1772778635811,-953.66024293,0.00017516,2]
[407765724,1772778635824,-152.0,0.00017536,10]
[407765725,1772778635834,-500.0,0.00017573,2]
[407765726,1772778635843,-500.14941243,0.00017573,2]
[407765727,1772778635854,-500.14291892,0.00017573,2]
[407765728,1772778635864,-500.0,0.00017573,2]
[407765729,1772778635874,-500.0,0.00017573,2]
[407765730,1772778635883,-5663.95215273,0.00017587,2]
[407765731,1772778635894,-4317.1168178,0.00017587,2]
[407765732,1772778635905,-237.39,0.000176,2]
[407765733,1772778635915,-152.0,0.00017706,11]
[407765734,1772778635924,-3817.5,0.00017775,2]
[407765735,1772778635935,-800.0,0.00017808,2]
[407765736,1772778635944,-175.77535362,0.00017818,2]
[407765737,1772778635955,-500.0,0.00017836,2]
[407765738,1772778635964,-237.39,0.0001787,2]
[407765739,1772778635974,-152.0,0.00017876,12]
[407765740,1772778635984,-1000.0,0.00017948,2]
[407765741,1772778635994,-1000.0,0.00017948,2]
[407765742,1772778636004,-1000.0,0.00017948,2]
[407765743,1772778636014,-500.62058261,0.00018,2]
[407765744,1772778636023,-200.0,0.00018,2]
[407765745,1772778636033,-200.0,0.00018005,2]
[407765746,1772778636043,-152.0,0.00018046,13]
[407765747,1772778636053,-866.0,0.00018048,2]
[407765748,1772778636063,-5663.95215273,0.00018049,2]
[407765749,1772778636072,-4317.1168178,0.00018049,2]
[407765750,1772778636081,-208.463529,0.00018053,7]
[407765751,1772778636091,-1229.15314637,0.00018064,2]
[407765752,1772778636100,-2500.0,0.00018064,2]
[407765753,1772778636110,-2500.0,0.00018064,2]
[407765754,1772778636119,-2500.0,0.00018064,2]
[407765755,1772778636129,-2500.0,0.00018064,2]
[407765756,1772778636138,-1019.34131951,0.00018064,2]
[407765757,1772778636147,-2500.0,0.00018064,2]
[407765758,1772778636157,-2500.0,0.00018064,2]
[407765759,1772778636166,-2500.0,0.00018064,2]
[407765760,1772778636176,-500.0,0.00018073,2]
[407765761,1772778636185,-500.0,0.00018073,2]
[407765762,1772778636195,-500.0,0.00018073,2]
[407765763,1772778636204,-500.0,0.00018073,2]
[407765764,1772778636212,-304.73817468,0.00018073,2]
[407765765,1772778636222,-500.0,0.00018073,2]
[407765766,1772778636231,-500.0,0.00018073,2]
[407765767,1772778636242,-500.0,0.00018073,2]
[407765768,1772778636251,-500.0,0.00018073,2]
[407765769,1772778636261,-500.0,0.00018073,2]
[407765770,1772778636270,-379.59364599,0.00018073,2]
[407765771,1772778636280,-163.08737228,0.00018073,2]
[407765772,1772778636290,-501.02356406,0.00018073,2]
[407765773,1772778636300,-500.0,0.00018073,2]
[407765774,1772778636309,-500.0,0.00018073,2]
[407765775,1772778636319,-500.0,0.00018073,2]
[407765776,1772778636329,-605.42447651,0.00018073,2]
[407765777,1772778636338,-186.30675442,0.00018073,2]
[407765778,1772778636348,-516.75291049,0.00018073,2]
[407765779,1772778636357,-189.7962273,0.00018073,2]
[407765780,1772778636366,-384.02166139,0.00018073,2]
[407765781,1772778636376,-500.0,0.00018073,2]
[407765782,1772778636385,-500.0,0.00018073,2]
[407765783,1772778636395,-500.0,0.00018073,2]
[407765784,1772778636404,-500.0,0.00018073,2]
[407765785,1772778636414,-488.64879362,0.00018073,2]
[407765786,1772778636423,-162.39445554,0.00018073,2]
[407765787,1772778636433,-501.02331855,0.00018073,2]
[407765788,1772778636442,-500.0,0.00018073,2]
[407765789,1772778636451,-501.01705892,0.00018073,2]
[407765790,1772778636460,-500.0,0.00018073,2]
[407765791,1772778636470,-500.0,0.00018073,2]
[407765792,1772778636480,-500.0,0.00018073,2]
[407765793,1772778636490,-500.0,0.00018073,2]
[407765794,1772778636499,-500.0,0.00018073,2]
[407765795,1772778636509,-3000.0,0.00018082,7]
[407765796,1772778636519,-9000.0,0.00018098,2]
[407765797,1772778636528,-151.0,0.00018098,2]
[407765798,1772778636538,-250.0,0.00018098,2]
[407765799,1772778636547,-1000.0,0.00018098,2]
[407765800,1772778636556,-3914.58551399,0.00018098,2]
[407765801,1772778636565,-311.11875681,0.00018098,2]
[407765802,1772778636575,-721.12765535,0.00018098,2]
[407765803,1772778636584,-500.0,0.00018098,2]
[407765804,1772778636593,-500.0,0.00018098,2]
[407765805,1772778636602,-500.0,0.00018098,2]
[407765806,1772778636611,-500.0,0.00018098,2]
[407765807,1772778636621,-500.0,0.00018098,2]
[407765808,1772778636630,-578.20924308,0.00018098,2]
[407765809,1772778636640,-500.0,0.00018098,2]
[407765810,1772778636650,-500.0,0.00018098,2]
[407765811,1772778636659,-500.0,0.00018098,2]
[407765812,1772778636668,-500.0,0.00018098,2]
[407765813,1772778636678,-500.0,0.00018098,2]
[407765814,1772778636687,-500.0,0.00018098,2]
[407765815,1772778636697,-151.0,0.00018098,2]
[407765816,1772778636706,-693.3919763,0.00018098,2]
[407765817,1772778636716,-174.61919141,0.00018098,2]
[407765818,1772778636725,-262.90206542,0.00018098,2]
[407765819,1772778636735,-209.40437684,0.00018098,2]
[407765820,1772778636744,-743.50770149,0.00018098,2]
[407765821,1772778636754,-269.917619,0.00018098,2]
[407765822,1772778636763,-771.53352111,0.00018121,2]
[407765823,1772778636772,-1000.0,0.00018121,2]
[407765824,1772778636781,-1000.0,0.00018121,2]
[407765825,1772778636790,-500.0,0.00018129,2]
[407765826,1772778636800,-237.39,0.0001814,2]
[407765827,1772778636809,-9000.0,0.00018153,2]
[407765828,1772778636823,-151.0,0.00018153,2]
[407765829,1772778636832,-719.04747942,0.00018153,2]
[407765830,1772778636842,-500.0,0.0001816,2]
[407765831,1772778636852,-162.35435741,0.0001816,2]
[407765832,1772778636863,-381.37084978,0.0001816,2]
[407765833,1772778636873,-162.8862272,0.0001816,2]
[407765834,1772778636883,-500.0,0.0001816,2]
[407765835,1772778636893,-176.67489835,0.0001816,2]
[407765836,1772778636903,-500.0,0.0001816,2]
[407765837,1772778636912,-500.0,0.0001816,2]
[407765838,1772778636922,-153.03249614,0.00018164,2]
[407765839,1772778636931,-9000.0,0.00018208,2]
[407765840,1772778636941,-151.0,0.00018208,2]
[407765841,1772778636951,-745.65223616,0.00018208,2]
[407765842,1772778636960,-152.0,0.00018216,14]
[407765843,1772778636969,-500.0,0.0001825,2]
[407765844,1772778636979,-9000.0,0.00018263,2]
[407765845,1772778636989,-151.0,0.00018263,2]
[407765846,1772778636999,-773.2413689,0.00018263,2]
[407765847,1772778637008,-204.6969554,0.00018273,2]
[407765848,1772778637018,-9000.0,0.00018318,2]
[407765849,1772778637027,-151.0,0.00018318,2]
[407765850,1772778637036,-801.85129955,0.00018318,2]
[407765851,1772778637045,-500.0,0.00018356,7]
[407765852,1772778637055,-600.0,0.00018356,7]
[407765853,1772778637064,-9000.0,0.00018373,2]
[407765854,1772778637073,-151.0,0.00018373,2]
[407765855,1772778637082,-831.51979763,0.00018373,2]
[407765856,1772778637092,-152.0,0.00018386,15]
[407765857,1772778637101,-500.0,0.00018391,2]
[407765858,1772778637111,-500.0,0.00018391,2]
[407765859,1772778637120,-860.0,0.000184,2]
[407765860,1772778637129,-847.0,0.000184,2]
[407765861,1772778637138,-237.39,0.0001841,2]
[407765862,1772778637148,-9000.0,0.00018428,2]
[407765863,1772778637157,-151.0,0.00018428,2]
[407765864,1772778637167,-862.28603014,0.00018428,2]
[407765865,1772778637176,-9000.0,0.00018483,2]
[407765866,1772778637185,-151.0,0.00018483,2]
[407765867,1772778637194,-894.19061326,0.00018483,2]
[407765868,1772778637203,-1500.0,0.00018496,2]
[407765869,1772778637212,-1500.0,0.00018496,2]
[407765870,1772778637222,-1500.0,0.00018496,2]
[407765871,1772778637231,-175.77535362,0.00018512,2]